Cogmind - Beta 9.6 @@@ ROGUE MODE // 2020.09.10 @ 17:53:57 Player: Carcosa Result: Destroyed by G-47 Trooper with Particle Gun Performance ------------- Evolutions (2) 1000 Regions Visited (5) 1000 Robots Destroyed (4) 20 Value Destroyed (75) 75 Prototype IDs (0) 0 Alien Tech Used (0) 0 Bonus (615) 615 TOTAL SCORE: 2710 Bonus ------- Pacifist 470 Follower Combat Kills 145 Cogmind --------- Core Integrity 0/550 Matter 245/300 Energy 100/100 System Corruption 1% Temperature Cool (9) Movement Core (50) Location -8/Storage Parts ------- > --- POWER (1) -------- (None) > --- PROPULSION (3) --- (None) > --- UTILITY (4) ------ (None) > --- WEAPON (3) ------- (None) > --- INVENTORY (4) ---- Deuterium Engine Light Treads Medium Storage Unit Shotgun Peak State ------------ > --- POWER ------------ Light Ion Engine > --- PROPULSION ------- Light Treads Flight Unit Flight Unit > --- UTILITY ---------- Small Storage Unit Medium Storage Unit Sensor Array > --- WEAPON ----------- Shotgun > --- INVENTORY -------- Deuterium Engine [Rating: 9] Favorites ----------- Power Ion Engine Engine Ion Engine Propulsion Aluminum Leg Treads Light Treads Leg Aluminum Leg Flight Unit Flight Unit Utility Small Storage Unit Device Sensor Array Storage Small Storage Unit Weapon Assault Rifle Ballistic Gun Assault Rifle Build | -11 -10 -10 -9 -8 -8 ------- Run | Scr Mat Min Mat Mat Sto Slots Evolved 4 | . . . 2 2 . Power . | . . . . . . Propulsion 1 | . . . . 1 . Utility 2 | . . . 1 1 . Weapon 1 | . . . 1 . . Parts Attached 14 | 5 1 1 2 5 . Power 2 | . 1 . . 1 . Engine 2 | . 1 . . 1 . Core . | . . . . . . Reactor . | . . . . . . Propulsion 6 | 2 . . 2 2 . Treads 2 | . . . 2 . . Leg 2 | 2 . . . . . Wheel . | . . . . . . Hover . | . . . . . . Flight 2 | . . . . 2 . Utility 3 | 1 . 1 . 1 . Device 1 | . . . . 1 . Storage 2 | 1 . 1 . . . Processor . | . . . . . . Hackware . | . . . . . . Protection . | . . . . . . Artifact . | . . . . . . Weapon 3 | 2 . . . 1 . Energy Gun . | . . . . . . Energy Cannon . | . . . . . . Ballistic Gun 3 | 2 . . . 1 . Ballistic Cannon . | . . . . . . Launcher . | . . . . . . Special Weapon . | . . . . . . Impact Weapon . | . . . . . . Slashing Weapon . | . . . . . . Piercing Weapon . | . . . . . . Special Melee Weapon . | . . . . . . Unidentified Prototypes . | . . . . . . Parts Lost 11 | . . . 6 . 5 Power 2 | . . . 1 . 1 Propulsion 5 | . . . 3 . 2 Utility 2 | . . . . . 2 Weapon 2 | . . . 2 . . Highest Loss Streak 6 | . . . 6 . 5 Average Slot Usage (%) 68 | . 85 87 70 53 20 Engine 10 | . 14 14 9 9 3 Treads 2 | . . . 2 9 . Leg 17 | . 28 28 18 . . Flight 1 | . . . . 1 7 Device 1 | . . . . 6 2 Storage 17 | . 14 16 22 18 6 Ballistic Gun 18 | . 28 28 19 9 . Naked Turns 21 | . . . . . 21 Heaviest Build 20 | 7 12 20 20 19 8 Greatest Support 40 | 20 20 20 40 20 8 Greatest Overweight (x) 1 | . . . 1 . 1 Average Overweight (x) . | . . . . . . Largest Inventory Capacity 10 | 6 6 10 10 10 6 Average Capacity 7 | 5 6 6 10 9 5 Most Carried 5 | 5 4 4 4 4 4 Average Carried 3 | 3 4 4 3 1 4 Final Capacity 10 | 6 6 10 10 6 4 Final Carried 5 | 5 4 4 2 4 4 Class Distribution -------------------- 100% | Mutant Dominant Class ---------------- Mutant | -10/Materials Mutant | -10/Mines Mutant | -9/Materials Mutant | -8/Materials Mutant | -8/Storage Resources | -11 -10 -10 -9 -8 -8 ----------- Run | Scr Mat Min Mat Mat Sto Matter Collected 270 | 227 . 32 . 11 . Remotely . | . . . . . . Salvage Created 92 | . . . . 92 . Parts 10 | . . . . 10 . Haulers Intercepted . | . . . . . . Recyclers Shooed . | . . . . . . Parts Field Recycled . | . . . . . . Retrieved Matter . | . . . . . . Parts Self-Destructed . | . . . . . . Prevented . | . . . . . . Kills | -11 -10 -10 -9 -8 -8 ------- Run | Scr Mat Min Mat Mat Sto Combat Hostiles Destroyed 4 | . . . . 4 . Guns 4 | . . . . 4 . Classes Destroyed 2 | . . . . 2 . Swarmer 3 | . . . . 3 . Sentry 1 | . . . . 1 . Best Kill Streak 4 | . . . . 4 . Combat Bots Only 4 | . . . . 4 . Max Kills in Single Turn 1 | . . . . 1 . Gunslinging . | . . . . . . Exploded . | . . . . . . Melee . | . . . . . . Uniques/NPCs Destroyed . | . . . . . . Combat | -11 -10 -10 -9 -8 -8 -------- Run | Scr Mat Min Mat Mat Sto Damage Taken 1999 | . 63 84 985 195 672 Core 862 | . 16 16 279 65 486 Absorbed by Shields . | . . . . . . Core Remaining (%) 72 | 100 . 87 30 . . Volleys Fired 15 | . . . . 15 . Largest 1 | . . . . 1 . Hottest 23 | . . . . 23 . Shots Fired 15 | . . . . 15 . Gun 15 | . . . . 15 . Cannon . | . . . . . . Launcher . | . . . . . . Special . | . . . . . . Kinetic 15 | . . . . 15 . Thermal . | . . . . . . Explosive . | . . . . . . Electromagnetic . | . . . . . . Robot Hit Streak 9 | . . . . 9 . Robot Miss Streak 2 | . . . . 2 . Penetration Max . | . . . . . . Secondary Targets . | . . . . . . Shots Hit Robots 14 | . . . . 14 . Core Hits 8 | . . . . 5 3 Critical Hits . | . . . . . . Critical Kills . | . . . . . . Critical Parts Destroyed . | . . . . . . Melee Attacks . | . . . . . . Impact . | . . . . . . Slashing . | . . . . . . Piercing . | . . . . . . Sneak Attacks . | . . . . . . Combat Hostiles . | . . . . . . Follow-up Attacks . | . . . . . . Damage Inflicted 184 | . . . . 155 29 Guns 155 | . . . . 155 . Cannons . | . . . . . . Explosions . | . . . . . . Melee . | . . . . . . Ramming 29 | . . . . . 29 Kinetic 155 | . . . . 155 . Thermal . | . . . . . . Explosive . | . . . . . . Electromagnetic . | . . . . . . Impact . | . . . . . . Slashing . | . . . . . . Piercing . | . . . . . . Highest Corruption 1 | . . . . . 1 Average Corruption 1 | . . . . . 1 Corruption Purged . | . . . . . . Overload Shots . | . . . . . . Overflow Damage . | . . . . . . Projectiles . | . . . . . . Explosions . | . . . . . . Melee . | . . . . . . Knockbacks . | . . . . . . Impact . | . . . . . . Kinetic . | . . . . . . Secondary . | . . . . . . Self-Inflicted Damage 13 | . . . . . 13 Shots . | . . . . . . Rammed 9 | . . . . . 9 Targets Rammed 9 | . . . . . 9 Kicked . | . . . . . . Crushed . | . . . . . . Highest Temperature 2 | . . . 2 . . Average Temperature 2 | . . . 2 . . Received Heat Transfer 885 | . 39 48 465 27 306 Siege Activations . | . . . . . . Robots Corrupted . | . . . . . . Combat Hostiles . | . . . . . . Parts Fried . | . . . . . . Impact Corruptions . | . . . . . . Robots Melted . | . . . . . . Combat Hostiles . | . . . . . . Parts Melted . | . . . . . . Heat Transferred . | . . . . . . Parts Sabotaged . | . . . . . . Parts Stolen . | . . . . . . Parts Stripped . | . . . . . . Power Chain Reactions . | . . . . . . Missiles Intercepted . | . . . . . . Alert | -11 -10 -10 -9 -8 -8 ------- Run | Scr Mat Min Mat Mat Sto Peak Influence 150 | . . . 145 150 78 Average Influence 26 | . . . 36 67 48 Maximum Alert Level . | . . . . . . Low Security (%) 100 | 100 100 100 100 100 100 Level 1 . | . . . . . . Level 2 . | . . . . . . Level 3 . | . . . . . . Level 4 . | . . . . . . Level 5 . | . . . . . . High Security . | . . . . . . Max Security . | . . . . . . Squads Dispatched 1 | . . . 1 . . Investigation . | . . . . . . Extermination . | . . . . . . Reinforcement 1 | . . . 1 . . Assault . | . . . . . . Garrison . | . . . . . . Intercept . | . . . . . . Construction Impeded . | . . . . . . Haulers Reinforced . | . . . . . . Stealth | -11 -10 -10 -9 -8 -8 --------- Run | Scr Mat Min Mat Mat Sto Distress Signals 1 | . . . . . 1 Communications Jammed . | . . . . . . Distress Signals . | . . . . . . Times Spotted 35 | . 2 2 14 5 12 Peak Tracking Total 12 | . 2 2 12 4 10 Tactical Retreats 3 | . . . 1 1 1 Traps | -11 -10 -10 -9 -8 -8 ------- Run | Scr Mat Min Mat Mat Sto Traps Triggered 1 | . . . . . 1 Indirectly . | . . . . . . Trap Hack Attempts . | . . . . . . Triggered . | . . . . . . Disarmed . | . . . . . . Reprogrammed . | . . . . . . Reused . | . . . . . . Traps Extracted . | . . . . . . Installed . | . . . . . . Triggered . | . . . . . . Machines | -11 -10 -10 -9 -8 -8 ---------- Run | Scr Mat Min Mat Mat Sto Machines Disabled . | . . . . . . Max in Single Turn . | . . . . . . Machines Sabotaged . | . . . . . . Garrisons Compromised . | . . . . . . Overloaded Fab Kills . | . . . . . . Fab Network Shutdowns . | . . . . . . Hacking | -11 -10 -10 -9 -8 -8 --------- Run | Scr Mat Min Mat Mat Sto Machines Accessed . | . . . . . . Terminals . | . . . . . . Fabricators . | . . . . . . Repair Stations . | . . . . . . Recycling Units . | . . . . . . Scanalyzers . | . . . . . . Garrison Access . | . . . . . . Total Hacks . | . . . . . . Successful . | . . . . . . Failed . | . . . . . . Catastrophic . | . . . . . . Database Lockouts . | . . . . . . Manual . | . . . . . . Terminals . | . . . . . . Fabricators . | . . . . . . Repair Stations . | . . . . . . Recycling Units . | . . . . . . Scanalyzers . | . . . . . . Garrison Access . | . . . . . . Terminal Hacks . | . . . . . . Fabricator Hacks . | . . . . . . Repair Station Hacks . | . . . . . . Recycling Unit Hacks . | . . . . . . Scanalyzer . | . . . . . . Garrison Access Hacks . | . . . . . . Unauthorized Hacks . | . . . . . . Terminals . | . . . . . . Fabricators . | . . . . . . Repair Stations . | . . . . . . Recycling Units . | . . . . . . Scanalyzers . | . . . . . . Garrison Access . | . . . . . . Data Cores Recovered . | . . . . . . Used . | . . . . . . Hacking Detections . | . . . . . . Full Trace Events . | . . . . . . Feedback Events . | . . . . . . Feedback Blocked . | . . . . . . Robot Schematics Acquired . | . . . . . . Robots Built . | . . . . . . Matter . | . . . . . . Time . | . . . . . . Total Robot Build Rating . | . . . . . . Part Schematics Acquired . | . . . . . . Parts Built . | . . . . . . Matter . | . . . . . . Time . | . . . . . . Total Part Build Rating . | . . . . . . Parts Repaired . | . . . . . . Time . | . . . . . . Parts Recycled . | . . . . . . Recycled Matter . | . . . . . . Retrieved Matter . | . . . . . . Retrieved Components . | . . . . . . Parts Scanalyzed . | . . . . . . Part Schematics Acquired . | . . . . . . Parts Damaged . | . . . . . . Bothacking | -11 -10 -10 -9 -8 -8 ------------ Run | Scr Mat Min Mat Mat Sto Used RIF Installer . | . . . . . . Robots Hacked . | . . . . . . Non-combat . | . . . . . . Combat . | . . . . . . Robot Hacks Applied . | . . . . . . Relay Couplers Released . | . . . . . . Robots Rewired . | . . . . . . Allies Hacked . | . . . . . . Hacks Repelled . | . . . . . . Allies | -11 -10 -10 -9 -8 -8 -------- Run | Scr Mat Min Mat Mat Sto Total Allies 2 | . . 2 . . . Largest Group 2 | . . 2 2 . . Highest-Rated Group 45 | . . 45 45 . . Highest-Rated Ally 31 | . . 31 31 . . Total Orders . | . . . . . . Ally Attacks 13 | . . 1 12 . . Total Damage 220 | . . 17 203 . . Kills 5 | . . . 5 . . Allies Corrupted . | . . . . . . Allies Melted . | . . . . . . Intel | -11 -10 -10 -9 -8 -8 ------- Run | Scr Mat Min Mat Mat Sto Robot Analysis Total . | . . . . . . Derelict Logs Recovered . | . . . . . . Drone Launches . | . . . . . . Drone Recoveries . | . . . . . . Exploration | -11 -10 -10 -9 -8 -8 ------------- Run | Scr Mat Min Mat Mat Sto Turns Passed 727 | 51 155 112 221 117 71 Spaces Moved 573 | 38 89 89 174 59 124 Core 58 | 10 . . . . 48 Treads 59 | . . . 16 43 . Legs 364 | 28 89 89 158 . . Wheels . | . . . . . . Hover . | . . . . . . Flight 92 | . . . . 16 76 Fastest Speed 37 | 50 120 120 120 37 37 Average Speed 106 | 101 120 120 125 126 50 Slowest Speed 160 | 120 120 120 160 160 100 Overloaded Moves . | . . . . . . Propulsion Burnouts . | . . . . . . Robots Hopped 3 | . . . . 2 1 Cave-ins Triggered . | . . . . . . Exploration Rate (%) 17 | 3 18 27 23 7 28 Regions Visited 5 Branch Regions 2 Pre-discovered Areas . | . . . . . . Known Exits Taken . | . . . . . . Unknown Exits Taken 5 | 1 1 1 1 1 . Scrap Searched 1 | . . 1 . . . Spaces Dug . | . . . . . . Terrain Destroyed . | . . . . . . Melee . | . . . . . . Projectile . | . . . . . . AOE . | . . . . . . Actions | -11 -10 -10 -9 -8 -8 --------- Run | Scr Mat Min Mat Mat Sto Total 670 | 48 137 93 177 83 132 Wait 55 | . 48 4 . 3 . Move 563 | 37 88 88 173 55 122 Hop 2 | . . . . 1 1 Pick Up 8 | 6 . . 1 1 . Fast Attach 8 | 4 . 1 . 3 . Attach 6 | 1 1 . 2 2 . Detach 3 | . . . . 3 . Swap . | . . . . . . Drop 1 | . . . 1 . . Fire 15 | . . . . 15 . Melee . | . . . . . . Ram 9 | . . . . . 9 Kick . | . . . . . . Crush . | . . . . . . Escape Stasis . | . . . . . . Rewire . | . . . . . . Trap . | . . . . . . Miscellaneous . | . . . . . . Route ------- -11/Scrapyard -10/Materials -10/Mines -9/Materials -8/Materials -8/Storage History --------- Turn | Location | Event 2 | -11/Scrapyard | Met Revision 17 7 | -11/Scrapyard | Discovered new exit (range 15) 52 | -11/Scrapyard | Entered Materials 200 | -10/Materials | Discovered new exit (range 7) 207 | -10/Materials | Entered Mines 216 | -10/Mines | Met a Derelict bent on vengeance 305 | -10/Mines | Discovered new exit (range 8) 318 | -10/Mines | Build established: Mutant 319 | -10/Mines | Entered Materials 319 | -9/Materials | Accompanied by 2 allies 319 | -9/Materials | Evolved 2 slots: Utility x1, Weapon x1 324 | -9/Materials | Led the pair of lost Derelicts to an unsafe place 516 | -9/Materials | Discovered new exit (range 15) 529 | -9/Materials | Core integrity fell below 50% 540 | -9/Materials | Entered another Materials area 540 | -8/Materials | Evolved 2 slots: Propulsion x1, Utility x1 567 | -8/Materials | Lost 6 parts (1p3n2w) 598 | -8/Materials | Discovered new exit (range 16) 657 | -8/Materials | Entered Storage 712 | -8/Storage | Core integrity fell below 50% 724 | -8/Storage | Core integrity fell below 20% 728 | -8/Storage | Destroyed by G-47 Trooper with Particle Gun Last Messages --------------- R-06 Scavenger collects Lgt. Assault Rifle. R-06 Scavenger collects Heat Sink. Acquired Flight Unit. K-01 Serf collects debris. LOCATION=UNKNOWN GOAL=ESCAPE K-01 Serf collects debris. Sensor Array destroyed. K-01 Serf destroyed. Lgt. Ion Engine destroyed. Flight Unit destroyed. W-25 Informer sends out distress signal. Slammed into G-47 Trooper. Destabilizing: System corrupted (+1). Slammed into G-47 Trooper. Sml. Storage Unit destroyed. Slammed into Y-45 Defender. Triggered Explosive Trap. An explosion rips through the floor. Slammed into G-47 Trooper. Map ----- +----------------------------------------------------+ | ????????????????????????????????????????????? | | ????????????????????????????????????????????? | | ????????????????????????????????????????????? | | ????????????????????????????????????????????? | | ????????????????????????????????????????????? | | ????????????????????????????????????????????? | | ????????????????????????????????????????????? | | ????????????????????????????????????????????? | | ????????????????????????????????????????????? | | ????????????????????????????????????????????? | | ?????????????????????????"??????????????????? | | ????????????????????????? ??????????????????? | | ??????????????????????+??????????????????? | | #####???????????????????# #?????????????????? | | #????????????????#??# #?????????????????? | | #??????????????? #??# #?????????????????? | | #??????????????? ???# #??###????????????? | | #??#####????"""" ???# #? #????????????? | | #??#"""#????? ????# #?! #????????????? | | #??#"R"#????? ????# # #????????????? | | ########" "#######+######u# [ #????????????? | | + #????????????? | | ##### # ! #????????????? | | #???#g#! ! #????????????? | | #######+##########/######g#? #????????????? | | ?????????????# ##@#? ###??????????? | | ???????????### ## ##+### ####???????? | | ???????????#"" ## g # #???????? | | ???????????#"Y """"" ## # """ =#???????? | | ????????????"" """"" Yg # """ #???????? | | ?????????????# """"" """ #???????? | | ?????????????# #### #???????? | | ?????????????# ####??# #???????? | | ?????????????#### ######?????##"T"###???????? | | ????????????????##?????????????####?????????? | | | | | | | | | | | | | | | | | | | | | | | | | | | | | | | +----------------------------------------------------+ Best States ------------- Heat Dissipation 31 Energy Generation 10 Energy Capacity 250 Matter Stores 300 Matter Capacity 300 Sight Range 16 Robot Scan Range 10 Terrain Scan Density 10 Evasion (%) 62 Recoil Reduction 2 Item Schematics ----------------- None Robot Schematics ------------------ None Fabricated ------------ Nothing Alien Tech Used ----------------- None Achievements -------------- None Challenges ------------ None Game ------ Seed CooledMetafiberRipper Manual? 0 Play Time 00:11:09 Cumulative 49.5 hours Start 2020.09.10 @ 17:32:11 End 2020.09.10 @ 17:53:57 Sessions 1 Manual Loads 0 Difficulty Rogue Special Mode None Game No. 158 Rogue 158 Adventurer 0 Explorer 0 Win Type - Total 0 Types 0/0/0/0/0/0/0 Lore% 13 Gallery% 29 Achievement% 14 Wizard Run 0 Options --------- ASCII 1 Keyboard 1 Movement Numpad Keybinds 0 Fullscreen 1 Font 12/Terminus Map View 83x54 Tactical HUD 0 Map Filters NONE Filters NONE Steam 1 RUN: 5ec1868c-f8f9-4d7f-9dd4-e63f3da82fe3